Cogmind - Beta 16.1 @@@ ROGUE MODE // 2026.02.10 @ 10:32:01 Player: shapeshifter Result: Destroyed by VC-946(R) with Subdweller Beam Cannon Performance ------------- Evolutions (0) 0 Regions Visited (2) 400 Robots Destroyed (34) 170 Value Destroyed (583) 583 Prototype IDs (1) 20 Alien Tech Used (0) 0 Bonus (0) 0 TOTAL SCORE: 1173 Bonus ------- None Cogmind --------- Core Integrity 0/250 Matter 300/300 Energy 64/100 System Corruption 0% Temperature Cool (9) Movement Treading (320) Ox2 Location -10/Subcaves Parts ------- > --- POWER (1) -------- (None) > --- PROPULSION (2) --- Light Treads > --- UTILITY (2) ------ Heat Sink High-capacity Storage Unit > --- WEAPON (2) ------- Particle Gun Particle Gun > --- INVENTORY (20) --- Cooled Ion Engine Light Treads Wheel Compact Wheel Heat Sink Huge Storage Unit Small Matter Pod (50) Medium Matter Pod (100) Medium Matter Pod (100) Medium Matter Pod (100) Medium Matter Pod (15) Particle Gun Particle Gun Peak State ------------ > --- POWER ------------ Cooled Ion Engine > --- PROPULSION ------- Light Treads Light Treads > --- UTILITY ---------- Heat Sink Small Storage Unit > --- WEAPON ----------- Particle Gun Particle Gun > --- INVENTORY -------- Cooled Ion Engine Wheel Compact Wheel Heat Sink Small Matter Pod Particle Gun Particle Gun Assault Rifle [Rating: 12] Favorites ----------- Power Cooled Ion Engine Engine Cooled Ion Engine Propulsion Light Treads Treads Light Treads Utility Heat Sink Device Heat Sink Storage High-capacity Storage Unit Weapon Particle Gun Energy Gun Particle Gun Ballistic Gun Assault Rifle Build | -11 -10 -10 ------- Run | Yrd Mat Sub Slots Evolved . | . . . Power . | . . . Propulsion . | . . . Utility . | . . . Weapon . | . . . Parts Attached 13 | 7 6 . Power 2 | 1 1 . Engine 2 | 1 1 . Core . | . . . Reactor . | . . . Propulsion 2 | 2 . . Treads 2 | 2 . . Leg . | . . . Wheel . | . . . Hover . | . . . Flight . | . . . Utility 5 | 2 3 . Device 3 | 1 2 . Storage 2 | 1 1 . Processor . | . . . Hackware . | . . . Protection . | . . . Artifact . | . . . Weapon 4 | 2 2 . Energy Gun 2 | . 2 . Energy Cannon . | . . . Ballistic Gun 2 | 2 . . Ballistic Cannon . | . . . Launcher . | . . . Special Weapon . | . . . Impact Weapon . | . . . Slashing Weapon . | . . . Piercing Weapon . | . . . Special Melee Weapon . | . . . Unidentified Prototypes 1 | . 1 . Parts Lost 3 | . 1 2 Power 1 | . . 1 Propulsion 1 | . . 1 Utility . | . . . Weapon 1 | . 1 . Highest Loss Streak 2 | . 1 2 To Critical Strikes . | . . . Average Backups 10 | 4 11 13 Power 1 | . 1 1 Propulsion 2 | 1 2 3 Utility 4 | . 5 7 Weapon 2 | . 2 2 Tool/Special . | . . . Unused Backups 17 | . 4 13 Power 3 | . 2 1 Propulsion 3 | . . 3 Utility 8 | . 1 7 Weapon 3 | . 1 2 Tool/Special . | . . . Average Slot Usage (%) 99 | . 99 98 Engine 13 | . 14 13 Treads 27 | . 28 27 Device 14 | . 14 14 Storage 14 | . 14 14 Energy Gun 23 | . 22 28 Ballistic Gun 4 | . 5 . Peak Build Rating 12 | 7 12 12 Average Rating 11 | 5 11 11 On Entrance 6 | . 7 12 Avg Prop Armor Cover (%) . | . . . Naked Turns . | . . . Heaviest Build 55 | 15 55 55 Greatest Support 40 | 40 40 40 Greatest Overweight (x) 1 | . 1 1 Average Overweight (x) . | . . 1 Largest Inventory Capacity 20 | 8 20 20 Average Capacity 16 | 7 17 20 Most Carried 14 | 6 14 13 Average Carried 10 | 4 11 13 Final Capacity 20 | 8 20 20 Final Carried 13 | 6 13 13 Class Distribution -------------------- 100% | Mutant Dominant Class ---------------- Mutant | -10/Materials Mutant | -10/Subcaves Resources | -11 -10 -10 ----------- Run | Yrd Mat Sub Matter Collected 857 | 366 430 61 Remotely . | . . . Salvage Created 982 | 163 792 27 Parts 63 | 11 51 1 Haulers Intercepted 2 | . 2 . Recyclers Shooed . | . . . Parts Field Recycled . | . . . Retrieved Matter . | . . . Parts Self-Destructed . | . . . Prevented . | . . . Parts Restored . | . . . Kills | -11 -10 -10 ------- Run | Yrd Mat Sub Combat Hostiles Destroyed 20 | . 19 1 Guns 20 | . 19 1 Classes Destroyed 8 | 3 4 1 Worker 4 | 1 3 . Tunneler 4 | 4 . . Hauler 2 | . 2 . Recycler 1 | 1 . . Watcher 3 | . 3 . Swarmer 9 | . 9 . Grunt 10 | . 10 . Subdweller 1 | . . 1 Best Kill Streak 4 | 2 4 1 Combat Bots Only 3 | . 3 1 Max Kills in Single Turn 2 | 1 2 1 Gunslinging 1 | . 1 . Exploded . | . . . Melee . | . . . Uniques/NPCs Destroyed . | . . . Combat | -11 -10 -10 -------- Run | Yrd Mat Sub Hostile Shots Fired 94 | . 80 14 Missed 18 | . 17 1 Hits 76 | . 63 13 Projectile 76 | . 63 13 Damage Taken 927 | . 607 320 Core 258 | . 121 137 Absorbed by Shields . | . . . Core Remaining (%) 100 | 100 . . Volleys Fired 85 | 16 61 8 Largest 2 | 2 2 2 Hottest 130 | 40 130 130 Shots Fired 168 | 32 120 16 Gun 168 | 32 120 16 Cannon . | . . . Launcher . | . . . Special . | . . . Kinetic 77 | 32 45 . Thermal 91 | . 75 16 Explosive . | . . . Electromagnetic . | . . . Robot Hit Streak 9 | 6 9 6 Robot Miss Streak 4 | 4 3 1 Penetration Max . | . . . Secondary Targets 1 | . 1 . Max Gunslinging Chain 1 | . 1 . Shots Hit Robots 102 | 19 70 13 Core Hits 40 | 6 32 2 Critical Kills . | . . . Critical Parts Destroyed . | . . . Critical Strikes 2 | . 2 . Burn 2 | . 2 . Melee Attacks . | . . . Impact . | . . . Slashing . | . . . Piercing . | . . . Sneak Attacks . | . . . Combat Hostiles . | . . . Follow-up Attacks . | . . . Damage Inflicted 1511 | 240 1054 217 Guns 1501 | 240 1044 217 Cannons . | . . . Explosions . | . . . Melee . | . . . Ramming 10 | . 10 . Kinetic 629 | 240 389 . Thermal 872 | . 655 217 Explosive . | . . . Electromagnetic . | . . . Impact . | . . . Slashing . | . . . Piercing . | . . . Highest Corruption . | . . . Average Corruption . | . . . Corruption Purged . | . . . Corruption Blocked . | . . . Overload Shots . | . . . Overflow Damage . | . . . Projectiles . | . . . Explosions . | . . . Melee . | . . . Knockbacks 1 | . 1 . Impact 1 | . 1 . Kinetic . | . . . Secondary . | . . . Self-Inflicted Damage . | . . . Shots . | . . . Rammed 1 | . 1 . Targets Rammed 1 | . 1 . Kicked . | . . . Crushed . | . . . Highest Temperature 144 | . 144 . Average Temperature 45 | . 45 . Received Heat Transfer 288 | . 216 72 Siege Activations . | . . . Martial Activations . | . . . Shielding Activations . | . . . Robots Disrupted . | . . . Combat Hostiles . | . . . Robots Corrupted . | . . . Combat Hostiles . | . . . Parts Fried . | . . . Impact Corruptions . | . . . Robots Melted . | . . . Combat Hostiles . | . . . Parts Melted 7 | . 5 2 Heat Transferred 2146 | . 1665 481 Parts Sabotaged . | . . . Parts Stolen . | . . . Parts Stripped . | . . . Power Chain Reactions . | . . . Alert | -11 -10 -10 ------- Run | Yrd Mat Sub Maximum Alert Level . | . . . Low Security (%) 100 | 100 100 . Level 1 . | . . . Level 2 . | . . . Level 3 . | . . . Level 4 . | . . . Level 5 . | . . . High Security . | . . . Max Security . | . . . Peak Influence 149 | 5 149 . Initial 3 | . 3 . Average 52 | 1 58 . Influence Increases 587 | 30 557 . Destroy 0b10 Robot/C 380 | . 380 . Destroy 0b10 Robot/NC 70 | 30 40 . Destroy Leader 90 | . 90 . Successful Hack 13 | . 13 . Disable Machine 15 | . 15 . Destroy Structure 4 | . 4 . Lose Combat Pursuer 15 | . 15 . Influence Decreases 587 | 25 562 . Entered New Map 2 | . 2 . Time Decay 575 | 25 550 . Lost Part 10 | . 10 . Squads Dispatched 4 | . 4 . Investigation 2 | . 2 . Extermination . | . . . Reinforcement 2 | . 2 . Assault . | . . . Garrison . | . . . Intercept . | . . . Searches Triggered . | . . . Construction Impeded . | . . . Haulers Reinforced . | . . . Active Scanning Responses . | . . . Cargo Convoy Interrupts . | . . . Stealth | -11 -10 -10 --------- Run | Yrd Mat Sub Distress Signals 4 | . 4 . Communications Jammed . | . . . Distress Signals . | . . . Times Spotted 30 | . 28 2 Peak Tracking Total 4 | . 4 2 Tactical Retreats 1 | . 1 . Traps | -11 -10 -10 ------- Run | Yrd Mat Sub Traps Triggered 2 | . 2 . Indirectly . | . . . Trap Hack Attempts . | . . . Triggered . | . . . Disarmed . | . . . Reprogrammed . | . . . Reused . | . . . Traps Extracted . | . . . Installed . | . . . Triggered . | . . . Machines | -11 -10 -10 ---------- Run | Yrd Mat Sub Machines Disabled 1 | . 1 . Max in Single Turn 1 | . 1 . Machines Repaired . | . . . Machines Dismantled . | . . . Machines Sabotaged . | . . . Overloaded Fab Kills . | . . . Hacking | -11 -10 -10 --------- Run | Yrd Mat Sub Machines Accessed 8 | . 8 . Terminals 6 | . 6 . Fabricators . | . . . Repair Stations . | . . . Recycling Units 2 | . 2 . Scanalyzers . | . . . Garrison Access . | . . . Total Hacks 22 | . 22 . Successful 10 | . 10 . Failed 12 | . 12 . Catastrophic 1 | . 1 . Database Lockouts . | . . . Manual 13 | . 13 . Terminals 17 | . 17 . Fabricators . | . . . Repair Stations . | . . . Recycling Units 5 | . 5 . Scanalyzers . | . . . Garrison Access . | . . . Terminal Hacks 1 | . 1 . Robot Analysis 1 | . 1 . Fabricator Hacks . | . . . Repair Station Hacks . | . . . Recycling Unit Hacks 1 | . 1 . Retrieve Components 1 | . 1 . Scanalyzer . | . . . Garrison Access Hacks . | . . . Unauthorized Hacks 8 | . 8 . Terminals 8 | . 8 . Botnet 2 | . 2 . Skim 6 | . 6 . Fabricators . | . . . Repair Stations . | . . . Recycling Units . | . . . Scanalyzers . | . . . Garrison Access . | . . . Data Cores Recovered . | . . . Used . | . . . Hacking Detections 6 | . 6 . Full Trace Events . | . . . Feedback Events . | . . . Feedback Blocked . | . . . Robot Schematics Acquired . | . . . Robots Built . | . . . Authchips . | . . . Time . | . . . Total Robot Build Rating . | . . . Part Schematics Acquired . | . . . Parts Built . | . . . Authchips . | . . . Time . | . . . Total Part Build Rating . | . . . Part Studies Acquired . | . . . Parts Repaired . | . . . Time . | . . . Parts Recycled . | . . . Recycled Matter . | . . . Retrieved Matter . | . . . Retrieved Components 10 | . 10 . Parts Scanalyzed . | . . . Part Schematics Acquired . | . . . Parts Damaged . | . . . Bothacking | -11 -10 -10 ------------ Run | Yrd Mat Sub Used RIF Installer . | . . . Robots Hacked . | . . . Non-combat . | . . . Combat . | . . . Robot Hacks Applied . | . . . Relay Couplers Released . | . . . Fabnet Peak Effective % . | . . . Robots Rewired . | . . . Allies Hacked . | . . . Hacks Repelled . | . . . Allies | -11 -10 -10 -------- Run | Yrd Mat Sub Total Allies . | . . . Largest Group . | . . . Highest-Rated Group . | . . . Highest-Rated Ally . | . . . Total Orders . | . . . Ally Attacks . | . . . Total Damage . | . . . Kills . | . . . Allies Corrupted . | . . . Allies Melted . | . . . Intel | -11 -10 -10 ------- Run | Yrd Mat Sub Active Infowar (turns) 353 | 36 317 . Seismic 353 | 36 317 . Robot Analysis Total 1 | . 1 . Derelict Logs Recovered 1 | . . 1 Drone Launches . | . . . Drone Recoveries . | . . . Exploration | -11 -10 -10 ------------- Run | Yrd Mat Sub Turns Passed 2131 | 214 1779 138 Spaces Moved 738 | 106 588 44 Core 20 | 20 . . Treads 718 | 86 588 44 Legs . | . . . Wheels . | . . . Hover . | . . . Flight . | . . . Fastest Speed 50 | 50 160 240 Average Speed 206 | 139 216 240 Slowest Speed 240 | 160 240 240 Overloaded Moves . | . . . Propulsion Burnouts . | . . . Robots Hopped . | . . . Potential Cave-ins . | . . . Cave-ins Triggered . | . . . Exploration Rate (%) 36 | 6 99 4 Regions Visited 2 Branch Regions 1 Pre-discovered Areas . | . . . Known Exits Taken . | . . . Unknown Exits Taken 2 | 1 1 . Scrap Searched . | . . . Spaces Dug . | . . . Terrain Destroyed . | . . . Melee . | . . . Projectile . | . . . AOE . | . . . Terrain Rammed . | . . . Walls Destroyed . | . . . Machines Disabled . | . . . Actions | -11 -10 -10 --------- Run | Yrd Mat Sub Total 1184 | 141 980 63 Wait 310 | . 299 11 Move 736 | 105 587 44 Hop . | . . . Pick Up 29 | 13 16 . Fast Attach 1 | . 1 . Attach 9 | 7 2 . Detach . | . . . Swap 3 | . 3 . Drop 10 | . 10 . Fire 85 | 16 61 8 Melee . | . . . Ram . | . . . Kick . | . . . Crush 1 | . 1 . Escape Stasis . | . . . Rewire . | . . . Trap . | . . . Miscellaneous . | . . . Route ------- -11/Scrapyard -10/Materials (discovered 6 exits: *Mat x3 / *Min x2 / [*Sub]) -10/Subcaves (discovered 3 exits: Mat x2 / Rec) History --------- Turn | Location | Event 6 | -11/Scrapyard | Discovered new exit (range 16) 215 | -11/Scrapyard | Entered Materials 304 | -10/Materials | Build established: Mutant 547 | -10/Materials | Discovered new exit (range 13) 951 | -10/Materials | Discovered new exit (range 7) 1063 | -10/Materials | Discovered new exit (range 11) 1073 | -10/Materials | Discovered new exit (range 15) 1458 | -10/Materials | Discovered new exit (range 7) 1678 | -10/Materials | Loaded intel: 15 trap records 1708 | -10/Materials | Discovered new exit (range 8) 1733 | -10/Materials | Learned location of 1 exit from Recycling 1777 | -10/Materials | Learned 4 Subcaves zone layouts 1811 | -10/Materials | Learned 2 Storage zone layouts 1961 | -10/Materials | Identified exit to Mines 1961 | -10/Materials | Identified exit to Materials 1994 | -10/Materials | Entered Subcaves 1995 | -10/Subcaves | Approached by a straggling Scientist 1995 | -10/Subcaves | Identified exit to Materials 1996 | -10/Subcaves | Identified exit to Recycling 1999 | -10/Subcaves | A swath of the cavern ceiling suddenly collapsed 2001 | -10/Subcaves | Learned Materials stockpile data 2100 | -10/Subcaves | Core integrity fell below 50% 2102 | -10/Subcaves | A swath of the cavern ceiling suddenly collapsed 2127 | -10/Subcaves | Core integrity fell below 20% 2132 | -10/Subcaves | Destroyed by VC-946(R) with Subdweller Beam Cannon Last Messages --------------- 02001_ Acquired derelict log, extracted data. Data stored: Materials stockpile data. 02006_ Acquired 9 matter. 02028_ Acquired 14 matter. 02044_ Acquired 12 matter. 9Z-YWJ(c): "I think it's somewhere northwest of here" 02064_ Acquired 11 matter. 02092_ Acquired 15 matter. 9Z-YWJ(c): "I think it's somewhere northwest of here" A swath of the cavern ceiling suddenly collapses. 02120_ Disposable Heat Sink melted. 02120_ Sub. Monowheel melted. 02120_ 4G-AGD(R) destroyed. 02124_ Cld. Ion Engine destroyed. 02126_ Subatomizers dissect the Sub. Power Source. 02128_ Lgt. Treads destroyed. Map ----- +----------------------------------------------------+ | ???? # #???????# ????????????????????? | | ???? ### #???????## ????????????????????? | | ???? ### #######??# ????????????????????? | | ???? #??##????????????????????? | | ???? #????????????????????????? | | ???? ######## #????????????????????????? | | ???? ## ####???####????????????????????????? | | ????# # # #####???????????????????????????? | | ???? # # #???????????????????????????? | | ???? # ### #???????????????????????????? | | ????# ## ## #### ##???????????????? %??????? | | ???? ## # ###???????## ??? ??????? | | ???? < ##?##??? ??? ??????? | | ???? ### ??? ??? ??????? | | ???? ## # ## ??? #??? ??????? | | ???? ############ ## ##??? #??? ??????? | | ???? #??????###### ####??## #???# #??????? | | ???? #????### ## #??## ????# ####???? | | ???? ##??### ### ##?## ???## # #???? | | ???????????? ????# ????? ????? ##??? | | ???????????? #??# ????? ??????# %#% #??? | | ??????????? ## ????# #??????# # #??? | | ??????????? # ????# #??????# # #???? | | ???????????" ; *???## #??????# %#???? | | ??????????????# # R%##?# ##????## "#??#? | | ???????????????# # @### ##??## #?""#" | | ???????????????##;;;;; #### #"""""# | | ???????????????#;#;##;; #### ## "##### | | ??????????????# ;;;## #??# ## #####?? | | ???????????? #;;;??## ###?## ## ##???????? | | ??????????? ;;;#????###?### ##????????? | | ????????????# #;;;#?????????# ###?????????? | | ??????????????# #???????????# #???????????? | | ??????????????##????????????###### ##???????????? | | ?????????????????????????????????####????????????? | | ?????????????????????????????????????????????????? | | ?????????????????????????????????????????????????? | | ?????????????????????????????????????????????????? | | ?????????????????????????????????????????????????? | | ?????????????????????????????????????????????????? | | ?????????????????????????????????????????????????? | | ?????????????????????????????????????????????????? | | ?????????????????????????????????????????????????? | | ?????????????????????????????????????????????????? | | ?????????????????????????????????????????????????? | | ?????????????????????????????????????????????????? | | ?????????????????????????????????????????????????? | | ?????????????????????????????????????????????????? | | ?????????????????????????????????????????????????? | | | +----------------------------------------------------+ Best States ------------- Heat Dissipation 35 Energy Generation 14 Energy Capacity 280 Matter Stores 300 Matter Capacity 300 Sight Range 16 Terrain Scan Density 10 Evasion (%) 50 Recoil Reduction 2 Item Schematics ----------------- None Robot Schematics ------------------ None Fabricated ------------ Nothing Repaired ---------- Nothing Studied --------- None Alien Tech Used ----------------- None Achievements -------------- None Challenges ------------ None Game ------ Seed RapidUtilityBattery Manual? 0 Play Time 00:06:48 Cumulative 688.7 hours Start 2026.02.10 @ 10:25:47 End 2026.02.10 @ 10:32:01 Sessions 1 Manual Loads 0 Difficulty Rogue Special Mode None Game No. 855 Rogue 855 Adventurer 0 Explorer 0 Win Type - Total 25 Types 12/1/3/3/2/0/2/2/0/0 Lore% 96 Gallery% 89 Achievement% 82 Wizard Run 0 Options --------- Layout 2 ASCII 0 Keyboard 0 Movement Mouse Keybinds 0 Fullscreen 2 Font 24/Tamsyn Map View 50x44 Zoom Use 0% Tactical HUD 1 Map Filters NONE Filters NONE Steam 1 RUN: a538b16b-3325-4a52-bc99-c7caae940fbb